bitfinex/quotes_BTCUSD_20211001
["timestamp","ask_amount","ask_price","bid_price","bid_amount"]
[1633071715522,0.97032252,44078.0,44068.0,0.0005301]
[1633071715726,0.0078218,44076.0,44068.0,0.0005301]
[1633071715924,1.03533252,44078.0,44071.0,1.103e-05]
[1633071715925,1.10248712,44072.0,44071.0,1.103e-05]
[1633071716132,1.10248712,44072.0,44063.0,0.00535389]
[1633071716133,0.00127141,44065.0,44063.0,0.00535389]
[1633071716329,0.24985662,44064.0,44063.0,0.00535389]
[1633071716526,0.45263965,44064.0,44063.0,0.00535389]
[1633071716922,0.91998759,44064.0,44063.0,0.00535389]
[1633071717125,0.67583965,44064.0,44063.0,0.00535389]
[1633071717323,0.9185651,44064.0,44063.0,0.00535389]
[1633071717924,0.93649494,44064.0,44063.0,0.00535389]
[1633071718123,0.91649494,44064.0,44063.0,0.00535389]
[1633071718326,0.67376949,44064.0,44063.0,0.00535389]
[1633071718526,0.92194585,44064.0,44063.0,0.00535389]
[1633071719523,0.67376949,44064.0,44063.0,0.00535389]
[1633071720124,0.67376949,44064.0,44047.0,0.32422378]
[1633071720326,0.00120102,44048.0,44046.0,0.3]
[1633071720527,0.00120102,44048.0,44047.0,0.01276175]
[1633071720931,0.2458452,44045.0,44042.0,0.3004]
[1633071721128,0.00713612,44048.0,44042.0,0.3004]
[1633071721129,0.00120102,44048.0,44042.0,0.3004]
[1633071721726,0.24553315,44048.0,44042.0,0.3004]
[1633071721928,0.00120102,44048.0,44042.0,0.3004]
[1633071722324,0.19489216,44046.0,44044.0,0.341005]
[1633071722524,0.19489216,44046.0,44044.0,0.366005]
[1633071722726,0.24054437,44047.0,44044.0,0.366005]
[1633071722924,0.03020102,44048.0,44044.0,0.366005]
[1633071723126,0.03020102,44048.0,44046.0,0.02413977]
[1633071723926,0.00120102,44048.0,44046.0,0.02413977]
[1633071724529,0.00120102,44048.0,44046.0,0.03913977]
[1633071724530,0.03220102,44048.0,44046.0,0.03913977]
[1633071724729,0.031,44048.0,44046.0,0.37972277]
[1633071724929,0.031,44048.0,44046.0,0.03913977]
[1633071725329,7.178e-05,44047.0,44046.0,0.03913977]
[1633071725530,0.24488415,44047.0,44046.0,0.03913977]
[1633071725732,0.46678879,44047.0,44046.0,0.03913977]
[1633071725931,0.46678879,44047.0,44046.0,0.02413977]
[1633071726129,0.22197642,44047.0,44046.0,0.04413977]
[1633071726390,0.47191059,44047.0,44046.0,0.04413977]
[1633071726531,0.04976988,44047.0,44046.0,0.034]
[1633071726731,0.04976988,44047.0,44046.0,0.03412295]
[1633071726929,0.03207178,44047.0,44046.0,1.07215057]
[1633071727532,0.27604509,44047.0,44046.0,1.07215057]
[1633071727731,0.24404509,44047.0,44046.0,1.05815057]
[1633071728131,0.4944682,44047.0,44046.0,1.05815057]
[1633071728330,0.24404509,44047.0,44046.0,1.05827352]
[1633071728531,0.27304509,44047.0,44046.0,1.08127352]
[1633071729398,0.27304509,44047.0,44046.0,1.08424526]
[1633071729531,0.27304509,44047.0,44046.0,1.08436821]
[1633071729735,0.24404509,44047.0,44046.0,1.06136821]
[1633071729932,7.178e-05,44047.0,44046.0,1.06136821]
[1633071730533,0.03107178,44047.0,44046.0,1.07736821]
[1633071730732,0.28164927,44047.0,44046.0,1.07736821]
[1633071730933,0.63472192,44047.0,44046.0,1.0804629]
[1633071731133,0.38414443,44047.0,44046.0,1.0804629]
[1633071731537,0.66168462,44047.0,44046.0,1.0804629]
[1633071731736,0.68438462,44047.0,44046.0,1.0804629]
[1633071731934,0.60028966,44047.0,44046.0,1.06743464]
[1633071732136,0.60028966,44047.0,44046.0,1.06755759]
[1633071732403,0.70028966,44047.0,44046.0,1.06755759]
[1633071732536,0.71915963,44047.0,44046.0,1.06755759]
[1633071733135,0.50808966,44047.0,44046.0,1.07065228]
[1633071733345,0.50808966,44047.0,44042.0,0.0004]
[1633071733346,0.228609,44046.0,44042.0,0.0004]
[1633071733537,0.0012034,44043.0,44042.0,0.0004]
[1633071733738,0.2525124,44043.0,44042.0,0.0004]
[1633071733936,0.30792242,44043.0,44042.0,0.0004]
[1633071734335,0.63112242,44043.0,44042.0,0.0004]
[1633071734540,0.63112242,44043.0,44042.0,0.00349469]
[1633071734541,0.66312242,44043.0,44042.0,0.00349469]
[1633071735137,0.92514903,44043.0,44042.0,0.00349469]
[1633071735738,0.92514903,44043.0,44042.0,0.00658938]
[1633071735937,0.89321565,44043.0,44042.0,0.02658938]
[1633071736539,0.92321565,44043.0,44042.0,0.02658938]
[1633071736942,0.92321565,44043.0,44042.0,0.02968407]
[1633071737742,0.92321565,44043.0,44042.0,0.00968407]
[1633071737943,0.89321565,44043.0,44037.0,0.01674096]
[1633071738143,0.0012339,44038.0,44037.0,0.01674096]
[1633071738407,0.02883431,44038.0,44037.0,0.01674096]
[1633071738945,0.38218413,44038.0,44037.0,0.01674096]
[1633071739344,0.56760967,44038.0,44037.0,0.01674096]
[1633071739542,0.79621867,44038.0,44037.0,0.01674096]
[1633071739744,0.53796844,44038.0,44037.0,0.01674096]
[1633071739942,0.53796844,44038.0,44037.0,0.0197127]
[1633071739943,0.53784549,44038.0,44037.0,0.0197127]
[1633071740145,0.78241708,44038.0,44037.0,0.0197127]
[1633071740543,0.81641708,44038.0,44037.0,0.0197127]
[1633071740741,0.81641708,44038.0,44037.0,0.01674096]
[1633071740943,0.47184549,44038.0,44037.0,0.01674096]
[1633071741141,0.71521063,44038.0,44037.0,0.01674096]
[1633071741949,0.68121063,44038.0,44037.0,0.01674096]
[1633071742342,0.78121063,44038.0,44037.0,0.01674096]
[1633071742546,0.81121063,44038.0,44037.0,0.0197127]
[1633071743345,0.81121063,44038.0,44037.0,0.01674096]
[1633071744549,0.81221063,44038.0,44037.0,0.01674096]
[1633071745352,0.86048133,44038.0,44037.0,0.01674096]
[1633071745549,0.95789819,44038.0,44037.0,0.01674096]
[1633071745949,0.92689819,44038.0,44037.0,0.01674096]
[1633071746350,1.1789471,44038.0,44037.0,0.01674096]
[1633071746551,1.2099471,44038.0,44037.0,0.01674096]
[1633071747955,1.1789471,44038.0,44037.0,0.01674096]
[1633071748551,1.2099471,44038.0,44037.0,0.01674096]
[1633071749953,1.1789471,44038.0,44037.0,0.01674096]
[1633071750418,0.7381651,44038.0,44037.0,0.01674096]
[1633071750556,0.5405561,44038.0,44037.0,0.01674096]
[1633071751354,0.68495362,44038.0,44037.0,0.01674096]
[1633071751755,0.68495362,44038.0,44037.0,0.01382748]
[1633071751955,1.09468262,44038.0,44037.0,0.01382748]
[1633071752357,0.51287155,44038.0,44037.0,0.01382748]
[1633071752561,6.09e-05,44038.0,44037.0,0.03390125]
[1633071752762,0.0310609,44038.0,44037.0,0.03218401]
[1633071753460,0.0310609,44038.0,44037.0,0.21860823]
[1633071753658,0.01202204,44038.0,44037.0,0.21860823]
[1633071754060,0.3407,44041.0,44037.0,0.03271411]
[1633071754261,0.00884749,44040.0,44037.0,0.03218401]
[1633071754660,0.044,44038.0,44037.0,0.03218401]
[1633071755062,0.05010869,44038.0,44037.0,0.01211024]
[1633071755261,0.39083169,44038.0,44037.0,0.01211024]
[1633071756062,0.42928369,44038.0,44037.0,0.01211024]
[1633071756260,0.00610869,44038.0,44037.0,0.01211024]
[1633071756460,0.340706,44040.0,44037.0,0.01211024]
[1633071756664,0.41198827,44042.0,44037.0,0.01211024]
[1633071756665,0.04,44038.0,44037.0,0.01211024]
[1633071756865,0.04,44038.0,44037.0,0.21442898]
[1633071757062,0.04,44038.0,44037.0,0.01048318]
[1633071757263,0.1188284,44038.0,44037.0,0.01048318]
[1633071757464,0.4595584,44038.0,44037.0,0.00919676]
[1633071758264,0.4195584,44038.0,44037.0,0.00628328]
[1633071758464,0.44073,44038.0,44037.0,0.00628328]
[1633071758663,0.47773,44038.0,44037.0,0.00628328]
[1633071759462,0.37773,44038.0,44037.0,0.00628328]
[1633071760061,0.34073,44038.0,44037.0,0.00628328]
[1633071760661,0.37773,44038.0,44037.0,0.00628328]
[1633071761061,0.37773,44038.0,44037.0,0.00673962]
[1633071761862,0.47773,44038.0,44037.0,0.00673962]
[1633071762063,0.44073,44038.0,44037.0,0.00673962]
[1633071762526,0.44073,44038.0,44037.0,0.00719596]
[1633071762725,0.47773,44038.0,44037.0,0.00719596]
[1633071763526,0.47773,44038.0,44037.0,0.0076523]
[1633071764123,0.137,44038.0,44037.0,0.0076523]
[1633071764324,0.1,44038.0,44037.0,0.0076523]
[1633071764523,0.567862,44039.0,44037.0,0.0076523]
[1633071764728,0.265609,44038.0,44037.0,0.0076523]
[1633071764925,0.365609,44038.0,44037.0,0.0076523]
[1633071765728,0.365609,44038.0,44037.0,0.01056577]
[1633071766131,0.58078983,44038.0,44037.0,0.01056577]
[1633071766329,0.328609,44038.0,44037.0,0.01056577]
[1633071766729,0.61547803,44038.0,44037.0,0.01347924]
[1633071767328,0.66547803,44038.0,44037.0,0.01347924]
[1633071768130,0.66547803,44038.0,44037.0,0.00783824]
[1633071768331,0.62847803,44038.0,44037.0,0.00783824]
[1633071768535,0.62847803,44038.0,44037.0,0.01075171]
[1633071768736,0.66047803,44038.0,44037.0,0.01075171]
[1633071768932,0.68047803,44038.0,44037.0,0.01075171]
[1633071769532,0.430609,44038.0,44037.0,0.01120805]
[1633071770132,0.398609,44038.0,44037.0,0.01120805]
[1633071770738,0.432609,44038.0,44037.0,0.01367452]
[1633071771534,0.382609,44038.0,44037.0,0.01367452]
[1633071771735,0.282609,44038.0,44037.0,0.01658799]
[1633071771937,0.332609,44038.0,44037.0,0.01658799]
[1633071772336,0.412609,44038.0,44037.0,0.01658799]
[1633071772535,0.312609,44038.0,44037.0,0.01658799]
[1633071772737,0.309609,44038.0,44037.0,0.01658799]
[1633071773534,0.309609,44038.0,44037.0,0.01950146]
[1633071774135,0.278609,44038.0,44037.0,0.01950146]
[1633071774335,0.05,44038.0,44037.0,0.01950146]
[1633071774539,0.617862,44039.0,44037.0,0.01950146]
[1633071774738,0.131,44038.0,44037.0,0.02241493]
[1633071775738,0.131,44038.0,44037.0,0.02413217]
[1633071776138,0.1,44038.0,44037.0,0.02413217]
[1633071776741,0.131,44038.0,44037.0,0.02458851]
[1633071777140,0.359609,44038.0,44037.0,0.02458851]
[1633071777739,0.53819856,44038.0,44037.0,0.02504485]
[1633071777940,0.53819856,44038.0,44037.0,0.00176069]
[1633071778138,0.50719856,44038.0,44037.0,0.00176069]
[1633071778739,0.358609,44038.0,44037.0,0.00221703]
[1633071779942,0.328609,44038.0,44037.0,0.00221703]
[1633071780540,0.328609,44038.0,44037.0,0.0051305]
[1633071780939,0.358609,44038.0,44037.0,0.0051305]
[1633071781742,0.358609,44038.0,44037.0,0.00558684]
[1633071782239,0.328609,44038.0,44037.0,0.00558684]
[1633071782642,0.328609,44038.0,44037.0,0.00850031]
[1633071782843,0.361609,44038.0,44037.0,0.00850031]
[1633071783643,0.361609,44038.0,44037.0,0.00895665]
[1633071784249,0.328609,44038.0,44037.0,0.00895665]
[1633071784842,0.363609,44038.0,44037.0,0.00895665]
[1633071785442,0.363609,44038.0,44037.0,0.01187012]
[1633071786443,0.328609,44038.0,44037.0,0.01187012]
[1633071786847,0.360609,44038.0,44037.0,0.01232646]
[1633071787645,0.360609,44038.0,44037.0,0.01092646]
[1633071787845,0.360609,44038.0,44037.0,0.0113828]
[1633071788246,0.328609,44038.0,44037.0,0.0113828]
[1633071788650,0.328609,44038.0,44037.0,0.01092646]
[1633071788848,0.365609,44038.0,44037.0,0.01092646]
[1633071789649,0.365609,44038.0,44037.0,0.00846933]
[1633071789853,0.365609,44038.0,44037.0,0.00971933]
[1633071789854,0.037,44038.0,44037.0,0.00971933]
[1633071790251,0.14040856,44040.0,44037.0,0.00846933]
[1633071790450,0.228609,44039.0,44037.0,0.00846933]
[1633071790648,0.228609,44039.0,44037.0,0.01092646]
[1633071791249,0.619315,44039.0,44037.0,0.01092646]
[1633071791653,0.619315,44039.0,44037.0,0.01102211]
[1633071792250,0.1,44038.0,44037.0,0.01102211]
[1633071792450,0.328609,44038.0,44037.0,0.01102211]
[1633071792857,0.362609,44038.0,44037.0,0.00846932]
[1633071793855,0.362609,44038.0,44037.0,0.01092645]
[1633071794254,0.328609,44038.0,44037.0,0.01092645]
[1633071794454,0.1,44038.0,44037.0,0.01092645]
[1633071794853,0.1,44038.0,44037.0,0.01138279]
[1633071795052,0.131,44038.0,44037.0,0.01092645]
[1633071796256,0.1,44038.0,44037.0,0.01092645]
[1633071797058,0.133,44038.0,44037.0,0.01092645]
[1633071797261,0.133,44038.0,44037.0,0.00846932]
[1633071798260,0.033,44038.0,44037.0,0.00846932]
[1633071798863,0.390706,44039.0,44037.0,0.01138279]
[1633071799062,0.036,44038.0,44037.0,0.01138279]
[1633071799462,0.390706,44039.0,44037.0,0.01138279]
[1633071800063,0.390706,44039.0,44037.0,0.00846932]
[1633071800464,0.0227,44038.0,44037.0,0.00846932]
[1633071800666,0.1227,44038.0,44037.0,0.00846932]
[1633071800863,0.351309,44038.0,44037.0,0.00846932]
[1633071801063,0.34839553,44038.0,44037.0,0.00846932]
[1633071801268,0.87720544,44038.0,44036.0,0.0004]
[1633071801469,0.54520775,44037.0,44036.0,0.0004]
[1633071801669,1.2028175,44037.0,44036.0,0.0004]
[1633071801870,1.48290654,44037.0,44034.0,0.0004]
[1633071802070,0.228609,44033.0,44029.0,0.0004]
[1633071802271,0.23372335,44030.0,44029.0,0.0004]
[1633071802473,0.96066011,44030.0,44029.0,0.0004]
[1633071802871,1.12760197,44030.0,44029.0,0.0004]
[1633071803075,0.228609,44029.0,44025.0,3.73332169]
[1633071803274,0.228609,44029.0,44021.0,0.0004]
[1633071803275,0.58741329,44022.0,44021.0,0.0004]
[1633071803472,1.8561153,44022.0,44011.0,0.0404]
[1633071803672,0.79778191,44018.0,44011.0,0.0404]
[1633071803870,1.14393152,44018.0,44011.0,0.0404]
[1633071804069,1.36731743,44018.0,44011.0,0.0404]
[1633071804530,0.85679215,44016.0,44011.0,0.0404]
[1633071804730,0.228609,44012.0,44011.0,0.0316]
[1633071804930,0.62497613,44012.0,44011.0,0.0316]
[1633071805327,0.72497613,44012.0,44011.0,0.0316]
[1633071805732,0.77065574,44012.0,44011.0,0.0316]
[1633071805929,0.74355037,44012.0,44011.0,0.0316]
[1633071806734,0.99739734,44012.0,44011.0,0.0316]
[1633071806931,1.02839734,44012.0,44011.0,0.0316]
[1633071807935,0.77455037,44012.0,44011.0,0.0316]
[1633071808337,1.03275994,44012.0,44011.0,0.0316]
[1633071808541,1.22495994,44012.0,44011.0,0.0316]
[1633071808738,1.15,44011.0,44006.0,0.0004]
[1633071808945,0.8011266,44008.0,44006.0,0.0004]
[1633071809139,1.15822638,44008.0,43997.0,0.0004]
[1633071809339,0.75061117,44003.0,43997.0,0.0004]
[1633071809538,1.43682514,44002.0,43997.0,0.0004]
[1633071810039,0.79771763,44000.0,43997.0,0.0004]
[1633071810235,1.12515525,44000.0,43997.0,0.0004]
[1633071810451,1.22515525,44000.0,43997.0,0.0004]
[1633071810639,1.44835525,44000.0,43997.0,0.0004]
[1633071811039,1.47835525,44000.0,43997.0,0.0004]
[1633071812041,1.77835525,44000.0,43997.0,0.0004]
[1633071812242,1.41995987,43999.0,43997.0,0.0004]
[1633071812442,1.96859474,43999.0,43993.0,0.0004]
[1633071812643,0.56918051,43994.0,43993.0,0.0004]
[1633071812842,1.15757772,43994.0,43993.0,0.0004]
[1633071813046,0.98111871,43994.0,43993.0,0.0094]
[1633071813243,0.98662679,43994.0,43993.0,0.0094]
[1633071813855,0.251309,43994.0,43993.0,0.0106015]
[1633071814049,0.0227,43994.0,43993.0,0.23423381]
[1633071814244,0.0227,43994.0,43993.0,0.0111316]
[1633071814443,0.0227,43994.0,43993.0,0.0004]
[1633071815044,0.0527,43994.0,43993.0,0.0004]
[1633071816448,0.0227,43994.0,43993.0,0.0004]
[1633071817048,0.0517,43994.0,43993.0,0.0004]
[1633071818047,0.0517,43994.0,43991.0,0.19888581]
[1633071818447,0.0227,43994.0,43991.0,0.19888581]
[1633071819046,0.0517,43994.0,43991.0,0.19888581]
[1633071819246,0.392779,43994.0,43991.0,0.19888581]
[1633071819447,0.1,43993.0,43991.0,0.19888581]
[1633071820855,0.26473398,43992.0,43990.0,0.0012]
[1633071821054,0.03716792,43991.0,43990.0,0.0012]
[1633071821250,0.31317983,43991.0,43990.0,0.0012]
[1633071821649,0.41317983,43991.0,43990.0,0.0012]
[1633071822251,0.64178883,43991.0,43990.0,0.0012]
[1633071822452,0.62732091,43991.0,43990.0,0.0012]
[1633071823051,0.65932091,43991.0,43990.0,0.0012]
[1633071823652,0.62732091,43991.0,43990.0,0.0012]
[1633071824054,0.351309,43991.0,43990.0,0.0012]
[1633071824252,0.60708511,43991.0,43990.0,0.0012]
[1633071825052,0.63808511,43991.0,43990.0,0.0012]
[1633071825253,0.63808511,43991.0,43990.0,0.0008]
[1633071825461,0.63808511,43991.0,43983.0,0.0008]
[1633071825462,0.3,43990.0,43983.0,0.0008]
[1633071825656,0.3,43990.0,43980.0,3.0256]
[1633071825657,0.341232,43983.0,43980.0,3.0256]
[1633071825856,0.30716482,43982.0,43980.0,3.0256]
[1633071826159,0.02531423,43981.0,43980.0,3.0256]
[1633071826353,0.31106989,43981.0,43980.0,3.0006]
[1633071826553,0.41106989,43981.0,43980.0,3.0006]
[1633071827152,0.44306989,43981.0,43980.0,3.0006]
[1633071827559,0.44306989,43981.0,43980.0,2.9756]
[1633071828154,0.41775566,43981.0,43980.0,0.0004]
[1633071828353,0.1547,43981.0,43980.0,0.0004]
[1633071828555,0.0227,43981.0,43980.0,0.0004]
[1633071828960,0.0227,43981.0,43980.0,1.1505301]
[1633071829161,0.02119919,43981.0,43980.0,0.23699051]
[1633071829557,0.02119919,43981.0,43980.0,0.23646041]
[1633071829756,0.00976829,43981.0,43980.0,0.33626051]
[1633071829959,0.22748768,43984.0,43980.0,0.11113967]
[1633071830158,0.22748768,43984.0,43980.0,0.0998001]
[1633071830358,0.01768024,43983.0,43981.0,0.0005301]
[1633071830559,0.0227,43985.0,43981.0,0.0005301]
[1633071830761,0.0227,43985.0,43984.0,0.00123117]
[1633071830959,0.1,43992.0,43984.0,0.00123117]
[1633071831161,0.031,43985.0,43984.0,0.00123117]
[1633071831365,0.031,43985.0,43984.0,0.00176127]
[1633071831562,0.031,43985.0,43984.0,0.00123117]
[1633071831962,0.031,43985.0,43984.0,0.00176127]
[1633071832161,0.031,43985.0,43984.0,0.20787986]
[1633071832363,0.031,43985.0,43984.0,0.00123117]
[1633071832563,0.15,43989.0,43984.0,0.00123117]
[1633071832762,0.0227,43991.0,43984.0,0.00123117]
[1633071832763,0.228609,43988.0,43984.0,0.00123117]
[1633071832962,0.278609,43988.0,43984.0,0.00123117]
[1633071833167,0.341137,43986.0,43985.0,0.227444]
[1633071833366,0.041137,43986.0,43985.0,0.227444]
[1633071833565,0.141137,43986.0,43985.0,0.227444]
[1633071833762,0.191137,43986.0,43985.0,0.227444]
[1633071833965,0.20830002,43986.0,43985.0,0.227444]
[1633071834166,0.23100002,43986.0,43985.0,0.227444]
[1633071834365,0.45960902,43986.0,43985.0,0.227444]
[1633071834765,0.45960902,43986.0,43985.0,0.31905038]
[1633071835368,0.442446,43986.0,43985.0,0.31905038]
[1633071835565,0.474446,43986.0,43985.0,0.31905038]
[1633071836768,0.442446,43986.0,43985.0,0.31905038]
[1633071837431,0.472446,43986.0,43985.0,0.31905038]
[1633071838969,0.442446,43986.0,43985.0,0.31905038]
[1633071839172,0.71860851,43986.0,43985.0,0.31905038]
[1633071839369,0.472446,43986.0,43985.0,0.31905038]
[1633071839569,0.472446,43986.0,43985.0,0.31718222]
[1633071839570,0.72372156,43986.0,43985.0,0.31718222]
[1633071839971,0.72372156,43986.0,43985.0,0.22557584]
[1633071840172,0.72497449,43986.0,43985.0,0.22557584]
[1633071840570,0.69497449,43986.0,43985.0,0.22557584]
[1633071841172,0.72797449,43986.0,43985.0,0.22557584]
[1633071842572,0.91817449,43986.0,43985.0,0.22557584]
[1633071842773,0.69497449,43986.0,43985.0,0.22557584]
[1633071843172,0.72697449,43986.0,43985.0,0.32542744]
[1633071843573,0.72572156,43986.0,43985.0,0.32542744]
[1633071843774,0.474446,43986.0,43985.0,0.32542744]
[1633071843981,0.474446,43986.0,43985.0,1.17666524]
[1633071843982,0.260609,43986.0,43985.0,1.17666524]
[1633071844175,0.032,43986.0,43985.0,0.3594229]
[1633071844379,0.032,43986.0,43985.0,0.359953]
[1633071844576,1.1312,43996.0,43985.0,0.2601014]
[1633071844779,0.228609,43995.0,43993.0,0.00128146]
[1633071844978,0.35165966,43994.0,43988.0,0.12875397]
[1633071845178,0.228609,43993.0,43989.0,0.09366445]
[1633071845379,0.0178195,43992.0,43991.0,0.227395]
[1633071845580,0.2464285,43992.0,43991.0,0.227395]
[1633071845777,0.2464285,43992.0,43991.0,0.32774031]
[1633071845977,0.228609,43992.0,43991.0,0.32774031]
[1633071846177,0.569732,43992.0,43991.0,0.32774031]
[1633071846780,0.669732,43992.0,43991.0,0.32774031]
[1633071847380,0.698732,43992.0,43991.0,0.32774031]
[1633071847983,0.96636214,43992.0,43991.0,0.10034531]
[1633071848181,0.96419873,43992.0,43979.0,0.0020009]
[1633071848381,0.22746147,43987.0,43985.0,0.227462]
[1633071848585,0.22746147,43987.0,43985.0,0.33204732]
[1633071848586,0.70343008,43986.0,43985.0,0.33204732]
[1633071848786,0.97663008,43986.0,43985.0,0.33204732]
[1633071848984,1.07663008,43986.0,43985.0,0.33204732]
[1633071849380,1.10663008,43986.0,43985.0,0.33204732]
[1633071850381,0.69566208,43986.0,43985.0,0.33204732]
[1633071850779,0.66566208,43986.0,43985.0,0.33204732]
[1633071851380,0.69666208,43986.0,43985.0,0.33204732]
[1633071852583,0.66270407,43986.0,43985.0,0.33204732]
[1633071853382,0.69370407,43986.0,43985.0,0.19183637]
[1633071854584,0.66270407,43986.0,43985.0,0.19183637]
[1633071855442,0.69370407,43986.0,43985.0,0.19183637]
[1633071855584,0.46509507,43986.0,43985.0,0.227462]
[1633071855783,0.46509507,43986.0,43985.0,0.32911825]
[1633071855784,0.69370407,43986.0,43985.0,0.32911825]
[1633071855985,0.45014605,43986.0,43985.0,0.32911825]
[1633071856385,0.6997451,43986.0,43985.0,0.32911825]
[1633071856785,0.6687451,43986.0,43985.0,0.32911825]
[1633071856986,0.41914605,43986.0,43985.0,0.32911825]
[1633071857387,0.43223132,43986.0,43985.0,0.32911825]
[1633071857787,0.67601068,43986.0,43985.0,0.32911825]
[1633071857987,0.67601068,43986.0,43985.0,0.263257]
[1633071858590,0.43223132,43986.0,43985.0,0.263257]
[1633071858791,0.40123132,43986.0,43985.0,0.263257]
[1633071859392,0.280309,43986.0,43985.0,0.263257]
[1633071860592,0.330309,43986.0,43985.0,0.263257]
[1633071860793,0.430309,43986.0,43985.0,0.263257]
[1633071860994,0.70520195,43986.0,43985.0,0.263257]
[1633071861297,0.70520195,43986.0,43983.0,0.01929537]
[1633071861496,0.23866532,43984.0,43983.0,0.12184368]
[1633071861697,0.40559532,43984.0,43983.0,0.12184368]
[1633071861895,0.40435449,43984.0,43983.0,0.12184368]
[1633071862096,0.36012449,43984.0,43983.0,0.12184368]
[1633071862301,0.23742449,43984.0,43983.0,0.12184368]
[1633071862498,0.228609,43984.0,43983.0,0.12184368]
[1633071862699,0.341278,43985.0,43983.0,0.12184368]
[1633071863295,0.228609,43984.0,43983.0,0.12184368]
[1633071863693,0.328609,43984.0,43983.0,0.12184368]
[1633071864895,0.328609,43984.0,43983.0,0.11484368]
[1633071865497,0.358609,43984.0,43983.0,0.11484368]
[1633071865899,0.35600868,43984.0,43983.0,0.11484368]
[1633071866699,0.32600868,43984.0,43983.0,0.11484368]
[1633071867298,0.35800868,43984.0,43983.0,0.11484368]
[1633071868557,0.32600868,43984.0,43983.0,0.11484368]
[1633071869566,0.38070868,43984.0,43983.0,0.11484368]
[1633071869959,0.62790454,43984.0,43983.0,0.11484368]
[1633071870362,0.62790454,43984.0,43983.0,0.10254831]
[1633071870762,0.59590454,43984.0,43983.0,0.10254831]
[1633071871561,0.62690454,43984.0,43983.0,0.10254831]
[1633071872363,0.37970868,43984.0,43983.0,0.10254831]
[1633071872562,0.62112434,43984.0,43983.0,0.10254831]
[1633071872971,0.34870868,43984.0,43983.0,0.10254831]
[1633071873563,0.37870868,43984.0,43983.0,0.10254831]
[1633071873765,0.62899955,43984.0,43983.0,0.10254831]
[1633071873966,0.37870868,43984.0,43983.0,0.10254831]
[1633071874167,0.62376167,43984.0,43983.0,0.10254831]
[1633071874767,0.59376167,43984.0,43983.0,0.10254831]
[1633071875568,0.62376167,43984.0,43983.0,0.10254831]
[1633071875966,0.62351999,43984.0,43983.0,0.10254831]
[1633071876968,0.59351999,43984.0,43983.0,0.10254831]
[1633071877569,0.62351999,43984.0,43983.0,0.10254831]
[1633071877969,0.378467,43984.0,43983.0,0.10254831]
[1633071879371,0.378467,43984.0,43983.0,0.80480691]
[1633071879372,0.255767,43984.0,43983.0,0.80480691]
[1633071879572,0.03,43984.0,43983.0,0.53873927]
[1633071879771,0.03,43984.0,43983.0,0.75669995]
[1633071879974,0.03,43984.0,43983.0,0.6419908]
[1633071880172,0.03,43984.0,43983.0,0.61997889]
[1633071880972,0.06658453,43990.0,43983.0,0.61997889]
[1633071881173,0.06658453,43990.0,43983.0,0.40254831]
[1633071881174,0.02064544,43988.0,43983.0,0.40254831]
[1633071881374,0.34115,43985.0,43983.0,0.40254831]
[1633071881574,0.139,43984.0,43983.0,0.40254831]
[1633071881773,0.17027999,43984.0,43983.0,0.40254831]
[1633071882374,0.17027999,43984.0,43983.0,0.65244831]
[1633071882779,0.13127999,43984.0,43983.0,0.65244831]
[1633071882974,0.13127999,43984.0,43983.0,0.90234831]
[1633071883576,0.16527999,43984.0,43983.0,0.90234831]
[1633071884175,0.134,43984.0,43983.0,0.90234831]
[1633071884777,0.034,43984.0,43983.0,0.90234831]
[1633071884978,0.454888,43988.0,43983.0,0.90234831]
[1633071885178,0.01732854,43987.0,43985.0,0.227462]
[1633071885379,0.08806598,43992.0,43986.0,0.3]
[1633071885576,0.03301141,43988.0,43987.0,0.09647254]
[1633071886179,0.03301141,43988.0,43987.0,0.33894765]
[1633071886577,0.13301141,43988.0,43987.0,0.33894765]
[1633071886778,0.341113,43989.0,43987.0,0.33894765]
[1633071886779,0.391113,43989.0,43987.0,0.33894765]
[1633071886979,0.1,43988.0,43987.0,0.33894765]
[1633071887180,0.391113,43989.0,43987.0,0.09647254]
[1633071887380,0.01790025,43988.0,43987.0,0.09647254]
[1633071887577,0.04890025,43988.0,43987.0,0.09647254]
[1633071887979,0.14890025,43988.0,43987.0,0.09647254]
[1633071888981,0.1,43988.0,43987.0,0.09647254]
[1633071889579,0.131,43988.0,43987.0,0.09647254]
[1633071890783,0.1,43988.0,43987.0,0.09647254]
[1633071891584,0.132,43988.0,43987.0,0.09647254]
[1633071892984,0.1,43988.0,43987.0,0.09647254]
[1633071893788,0.133,43988.0,43986.0,0.3918635]
[1633071893988,0.133,43988.0,43986.0,0.3]
[1633071893989,0.03197725,43987.0,43986.0,0.3]
[1633071894392,0.03197725,43987.0,43986.0,0.3812596]
[1633071894602,0.033,43988.0,43986.0,0.3812596]
[1633071894603,0.033,43988.0,43987.0,0.61405377]
[1633071894792,0.033,43988.0,43987.0,0.72967367]
[1633071894998,0.06541361,43998.0,43987.0,0.73020377]
[1633071895196,0.06545054,44001.0,43997.0,0.43428034]
[1633071895392,1.1754,44004.0,43998.0,0.17859327]
[1633071895393,0.24588553,44000.0,43998.0,0.17859327]
[1633071895595,0.01805833,43999.0,43998.0,0.11629402]
[1633071895990,0.06543701,44003.0,43998.0,0.21579277]
[1633071896191,0.06548357,44002.0,43998.0,0.21579277]
[1633071896396,0.341025,44000.0,43998.0,0.21579277]
[1633071897461,0.08814625,44004.0,43998.0,0.21579277]
[1633071897596,0.08814625,44004.0,43999.0,0.28636351]
[1633071897597,0.0227,44004.0,43999.0,0.28636351]
[1633071897792,0.0227,44004.0,44001.0,0.09317937]
[1633071897993,0.01716201,44003.0,44001.0,0.02733079]
[1633071898793,0.0227,44004.0,44001.0,0.02733079]
[1633071899194,0.0227,44004.0,44001.0,0.25465479]
[1633071899392,0.341005,44003.0,44001.0,0.25465479]
[1633071899594,0.341005,44003.0,44001.0,0.25965479]
[1633071899998,0.01732107,44002.0,44001.0,0.25965479]
[1633071900196,0.341005,44003.0,44001.0,0.25965479]
[1633071900998,0.341005,44003.0,44001.0,0.25465479]
[1633071901201,0.0227,44004.0,44001.0,0.25465479]
[1633071901402,0.0227,44004.0,44002.0,0.0005301]
[1633071901601,0.029,44003.0,44001.0,0.241324]
[1633071901798,0.029,44003.0,44001.0,0.34316938]
[1633071902006,0.029,44003.0,44002.0,1.02101756]
[1633071902199,0.029,44003.0,44002.0,0.59759334]
[1633071902398,0.029,44003.0,44002.0,0.6051126]
[1633071902699,0.029,44003.0,44002.0,0.60635572]